Cogmind - Beta 13 @@@ ROGUE MODE // 2024.05.01 @ 20:02:01 Player: Olafz Result: Destroyed by S-27 Virus with Autogun Performance ------------- Evolutions (4) 2000 Regions Visited (10) 2000 Robots Destroyed (56) 280 Value Destroyed (1774) 1774 Prototype IDs (216) 4320 Alien Tech Used (0) 0 Bonus (3133) 3133 TOTAL SCORE: 13507 Bonus ------- High Alert Combat Kills 66 Met Data Miner 300 Used Data Conduit 3000 Friendly Fire -233 Cogmind --------- Core Integrity 0/850 Matter 296/300 Energy 100/100 System Corruption 0% Temperature Cool (0) Movement Core (200) Ox3 Location -6/Factory Parts ------- > --- POWER (1) -------- (None) > --- PROPULSION (4) --- (None) > --- UTILITY (8) ------ Medium Storage Unit Improved Signal Interpreter Improved Melee Analysis Suite Hacking Suite System Shield > --- WEAPON (2) ------- (None) > --- INVENTORY (10) --- Improved Melee Analysis Suite Transmission Jammer Improved Utility Shielding Plasma Cutter Great Maul Great Maul Great Maul Chainsword Spear Peak State ------------ > --- POWER ------------ Light Fission Core > --- PROPULSION ------- Improved Linear Gravjet Improved Linear Gravjet Xenon Bombardment Thruster Cooled VTOL Module > --- UTILITY ---------- Medium Storage Unit Improved Signal Interpreter Improved Melee Analysis Suite Improved Melee Analysis Suite Core Analyzer Hacking Suite System Shield System Shield > --- WEAPON ----------- Katana Chainsword > --- INVENTORY -------- Cooled VTOL Module Improved Melee Analysis Suite Transmission Jammer Improved Utility Shielding Plasma Cutter Great Maul Great Maul Great Maul Spear [Rating: 63] Favorites ----------- Power Light Nuclear Core Engine Ion Engine Power Core Light Nuclear Core Propulsion Cooled VTOL Module Leg Aluminum Leg Hover Unit Aerolev Unit Flight Unit Cooled VTOL Module Utility System Shield Device Disposable Heat Sink Storage Medium Storage Unit Processor Improved Melee Analysis Suite Hackware System Shield Protection Improved Utility Shielding Weapon Improved EM Shotgun Energy Gun Improved EM Shotgun Impact Weapon Great Maul Slashing Weapon Katana Piercing Weapon Spear Build | -11 -10 -10 -9 -8 -7 -7 -7 -7 -6 -6 ------- Run | Yrd Mat Min Mat Mat Fac Low Low Dat Pro Fac Slots Evolved 8 | . . . 2 2 2 . . . . 2 Power . | . . . . . . . . . . . Propulsion 2 | . . . . . 2 . . . . . Utility 6 | . . . 2 2 . . . . . 2 Weapon . | . . . . . . . . . . . Parts Attached 72 | . 4 2 5 29 14 . 1 1 . 16 Power 13 | . . 1 2 6 1 . 1 . . 2 Engine 3 | . . . 1 2 . . . . . . Core 10 | . . 1 1 4 1 . 1 . . 2 Reactor . | . . . . . . . . . . . Propulsion 22 | . . 1 1 8 5 . . . . 7 Treads . | . . . . . . . . . . . Leg 6 | . . 1 1 4 . . . . . . Wheel . | . . . . . . . . . . . Hover 8 | . . . . 4 . . . . . 4 Flight 8 | . . . . . 5 . . . . 3 Utility 22 | . 2 . 1 9 4 . . . . 6 Device 8 | . 1 . . 5 . . . . . 2 Storage 3 | . 1 . . 1 1 . . . . . Processor 6 | . . . 1 1 3 . . . . 1 Hackware 4 | . . . . 2 . . . . . 2 Protection 1 | . . . . . . . . . . 1 Artifact . | . . . . . . . . . . . Weapon 15 | . 2 . 1 6 4 . . 1 . 1 Energy Gun 6 | . 2 . 1 3 . . . . . . Energy Cannon . | . . . . . . . . . . . Ballistic Gun . | . . . . . . . . . . . Ballistic Cannon . | . . . . . . . . . . . Launcher . | . . . . . . . . . . . Special Weapon . | . . . . . . . . . . . Impact Weapon 1 | . . . . . 1 . . . . . Slashing Weapon 6 | . . . . 2 2 . . 1 . 1 Piercing Weapon 2 | . . . . 1 1 . . . . . Special Melee Weapon . | . . . . . . . . . . . Unidentified Prototypes 5 | . 1 . 1 2 1 . . . . . Corrupted Parts 1 | . . . 1 . . . . . . . System Corruption 2 | . . . 2 . . . . . . . Parts Lost 23 | . . . . 6 2 . . . . 15 Power 4 | . . . . 1 . . . . . 3 Propulsion 9 | . . . . 2 . . . . . 7 Utility 7 | . . . . 2 1 . . . . 4 Weapon 3 | . . . . 1 1 . . . . 1 Highest Loss Streak 6 | . . . . 3 1 . . . . 6 To Critical Strikes . | . . . . . . . . . . . Average Slot Usage (%) 90 | . 89 100 77 91 90 100 100 100 100 85 Engine 2 | . 14 9 . . . . . . . . Core 6 | . . 4 10 7 5 7 7 7 7 5 Leg 11 | . 28 28 22 12 . . . . . . Hover 2 | . . . . 5 . . . . . 6 Flight 9 | . . . . . 27 30 30 30 30 14 Device 9 | . 4 14 11 22 1 . . . . 1 Storage 9 | . 14 14 11 9 7 7 7 7 7 6 Processor 13 | . . . 1 10 24 30 30 30 30 24 Hackware 5 | . . . . 5 7 7 7 7 7 15 Energy Gun 11 | . 28 28 22 11 . . . . . . Slashing Weapon 4 | . . . . 5 7 7 7 9 15 8 Piercing Weapon 1 | . . . . . 6 7 7 4 . . Naked Turns . | . . . . . . . . . . . Heaviest Build 33 | 14 32 32 32 33 21 19 19 20 20 22 Greatest Support 29 | 20 20 20 20 29 21 21 21 27 21 21 Greatest Overweight (x) 7 | . 1 1 1 7 1 . . . . 5 Average Overweight (x) . | . . 1 1 . . . . . . . Largest Inventory Capacity 15 | . 15 15 15 15 10 10 10 10 10 10 Average Capacity 12 | . 9 15 15 13 10 10 10 10 10 10 Most Carried 15 | . 9 12 15 15 10 10 10 10 10 10 Average Carried 10 | . 6 9 13 12 9 9 10 10 10 9 Final Capacity 15 | 8 15 15 15 10 10 10 10 10 10 10 Final Carried 15 | 6 8 12 15 10 10 10 10 10 10 9 Class Distribution -------------------- 36% | Mutant 19% | Sprinter 15% | Scavenger-Mutant 11% | Hacker-Mutant 8% | Scavenger-Gladiator 7% | Scavenger-Sprinter Dominant Class ---------------- Mutant | -10/Materials Mutant | -10/Mines Mutant | -9/Materials Scavenger-Mutant | -8/Materials Scavenger-Sprinter | -7/Factory Sprinter | -7/Lower Caves Sprinter | -7/Lower Caves Sprinter | -7/Data Miner Sprinter | -6/Proximity Caves Hacker-Mutant | -6/Factory Resources | -11 -10 -10 -9 -8 -7 -7 -7 -7 -6 -6 ----------- Run | Yrd Mat Min Mat Mat Fac Low Low Dat Pro Fac Matter Collected 820 | 166 . 94 50 255 110 30 10 . 10 95 Remotely . | . . . . . . . . . . . Salvage Created 2413 | . . 146 423 1189 361 . . . . 294 Parts 142 | . . 14 24 62 16 . . . . 26 Haulers Intercepted 2 | . . . . 2 . . . . . . Recyclers Shooed 4 | . . 1 . 3 . . . . . . Parts Field Recycled . | . . . . . . . . . . . Retrieved Matter . | . . . . . . . . . . . Parts Self-Destructed . | . . . . . . . . . . . Prevented . | . . . . . . . . . . . Kills | -11 -10 -10 -9 -8 -7 -7 -7 -7 -6 -6 ------- Run | Yrd Mat Min Mat Mat Fac Low Low Dat Pro Fac Combat Hostiles Destroyed 41 | . . 5 8 17 6 . . . . 5 Melee 23 | . . . . 12 6 . . . . 5 Guns 14 | . . 5 5 4 . . . . . . AOE 2 | . . . 2 . . . . . . . Classes Destroyed 12 | . . 2 3 5 1 . . . . 1 Worker 3 | . . . . 2 . . . . . 1 Hauler 2 | . . . . 2 . . . . . . Recycler 3 | . . . . 3 . . . . . . Operator 1 | . . . . . . . . . . 1 Watcher 5 | . . . 2 2 . . . . . 1 Swarmer 9 | . . 3 . 2 1 . . . . 3 Grunt 21 | . . 2 6 9 2 . . . . 2 Brawler 1 | . . . 1 . . . . . . . Duelist 1 | . . . . 1 . . . . . . Protector 1 | . . . . . 1 . . . . . Sentry 8 | . . . 1 4 3 . . . . . Hunter 1 | . . . . 1 . . . . . . Best Kill Streak 10 | . . 4 3 10 3 . . . . 3 Combat Bots Only 6 | . . 4 3 6 3 . . . . 3 Max Kills in Single Turn 1 | . . 1 1 1 1 . . . . 1 Gunslinging . | . . . . . . . . . . . Exploded 1 | . . . 1 . . . . . . . Melee 1 | . . . . 1 1 . . . . 1 Uniques/NPCs Destroyed . | . . . . . . . . . . . Combat | -11 -10 -10 -9 -8 -7 -7 -7 -7 -6 -6 -------- Run | Yrd Mat Min Mat Mat Fac Low Low Dat Pro Fac Hostile Shots Fired 437 | . . 15 27 139 109 5 . 3 5 134 Missed 153 | . . 3 8 30 58 4 . 2 2 46 Damage Taken 4114 | . . 136 263 1505 405 22 . 45 42 1696 Core 1607 | . . 48 45 431 160 22 . 45 . 856 Absorbed by Shields . | . . . . . . . . . . . Core Remaining (%) 71 | 100 . 80 88 21 . . . . 67 . Volleys Fired 62 | . 2 7 17 36 . . . . . . Largest 2 | . 2 2 2 2 . . . . . . Hottest 122 | . 90 90 90 122 . . . . . . Shots Fired 124 | . 4 14 34 72 . . . . . . Gun 124 | . 4 14 34 72 . . . . . . Cannon . | . . . . . . . . . . . Launcher . | . . . . . . . . . . . Special . | . . . . . . . . . . . Kinetic . | . . . . . . . . . . . Thermal 74 | . 2 . . 72 . . . . . . Explosive . | . . . . . . . . . . . Electromagnetic 50 | . 2 14 34 . . . . . . . Robot Hit Streak 14 | . 1 5 8 14 . . . . . . Robot Miss Streak 4 | . 2 4 2 2 . . . . . . Penetration Max . | . . . . . . . . . . . Secondary Targets 1 | . . 1 . . . . . . . . Max Gunslinging Chain 1 | . . 1 . . . . . . . . Shots Hit Robots 171 | . 1 9 28 96 18 . . 1 . 18 Core Hits 84 | . . 8 19 34 11 . . . . 12 Critical Kills . | . . . . . . . . . . . Critical Parts Destroyed . | . . . . . . . . . . . Critical Strikes 12 | . 1 . . 7 1 . . . . 3 Burn 4 | . 1 . . 3 . . . . . . Sever 8 | . . . . 4 1 . . . . 3 Melee Attacks 104 | . . . . 52 24 2 . 1 . 25 Impact . | . . . . . . . . . . . Slashing 86 | . . . . 49 11 . . 1 . 25 Piercing 18 | . . . . 3 13 2 . . . . Sneak Attacks 8 | . . . . 4 2 . . 1 . 1 Combat Hostiles . | . . . . . . . . . . . Follow-up Attacks 14 | . . . . 7 6 . . . . 1 Damage Inflicted 4687 | . 12 140 590 2372 684 . . 92 . 797 Guns 1562 | . 12 140 430 980 . . . . . . Cannons . | . . . . . . . . . . . Explosions 154 | . . . 154 . . . . . . . Melee 2946 | . . . . 1392 684 . . 92 . 778 Ramming 25 | . . . 6 . . . . . . 19 Kinetic . | . . . . . . . . . . . Thermal 1146 | . 12 . 154 980 . . . . . . Explosive . | . . . . . . . . . . . Electromagnetic 570 | . . 140 430 . . . . . . . Impact . | . . . . . . . . . . . Slashing 2525 | . . . . 1310 345 . . 92 . 778 Piercing 421 | . . . . 82 339 . . . . . Highest Corruption 2 | . . . 2 . . . . . . . Average Corruption 2 | . . . 2 . . . . . . . Corruption Purged . | . . . . . . . . . . . Corruption Blocked . | . . . . . . . . . . . Effects 1 | . . . 1 . . . . . . . Heat Flow Errors 1 | . . . 1 . . . . . . . Overload Shots . | . . . . . . . . . . . Overflow Damage 25 | . . . . 25 . . . . . . Projectiles . | . . . . . . . . . . . Explosions . | . . . . . . . . . . . Melee 25 | . . . . 25 . . . . . . Knockbacks . | . . . . . . . . . . . Impact . | . . . . . . . . . . . Kinetic . | . . . . . . . . . . . Secondary . | . . . . . . . . . . . Self-Inflicted Damage 48 | . . . 39 . . . . . . 9 Shots 1 | . . . 1 . . . . . . . Rammed 2 | . . . . . . . . . . 2 Targets Rammed 4 | . . 1 1 . . . . . . 2 Kicked 2 | . . 1 1 . . . . . . . Crushed . | . . . . . . . . . . . Highest Temperature 298 | . 30 124 298 191 . . . 140 . 3 Average Temperature 61 | . 18 58 67 59 . . . 92 . 3 Received Heat Transfer 1119 | . . 75 111 594 90 9 . . . 240 Siege Activations . | . . . . . . . . . . . Robots Corrupted 1 | . . . 1 . . . . . . . Combat Hostiles 1 | . . . 1 . . . . . . . Parts Fried 2 | . . . 2 . . . . . . . Impact Corruptions . | . . . . . . . . . . . Robots Melted 1 | . . . . 1 . . . . . . Combat Hostiles 1 | . . . . 1 . . . . . . Parts Melted 6 | . . . . 6 . . . . . . Heat Transferred 2642 | . 111 . 200 2331 . . . . . . Parts Sabotaged . | . . . . . . . . . . . Parts Stolen . | . . . . . . . . . . . Parts Stripped . | . . . . . . . . . . . Power Chain Reactions 3 | . . . 3 . . . . . . . Alert | -11 -10 -10 -9 -8 -7 -7 -7 -7 -6 -6 ------- Run | Yrd Mat Min Mat Mat Fac Low Low Dat Pro Fac Peak Influence 549 | . 20 127 338 549 304 . . . . 254 Initial 176 | . . 7 . 57 176 . . . . . Average 128 | . 14 16 149 191 194 . . . . 99 Maximum Alert Level 2 | . . . 1 2 1 . . . . 1 Low Security (%) 75 | . 100 100 63 65 56 . . . . 83 Level 1 22 | . . . 36 23 43 . . . . 16 Level 2 2 | . . . . 10 . . . . . . Level 3 . | . . . . . . . . . . . Level 4 . | . . . . . . . . . . . Level 5 . | . . . . . . . . . . . High Security . | . . . . . . . . . . . Max Security . | . . . . . . . . . . . Squads Dispatched 11 | . . . 2 3 . . 1 . . 5 Investigation 4 | . . . 1 1 . . . . . 2 Extermination . | . . . . . . . . . . . Reinforcement 6 | . . . 1 2 . . . . . 3 Assault 1 | . . . . . . . 1 . . . Garrison . | . . . . . . . . . . . Intercept . | . . . . . . . . . . . Searches Triggered . | . . . . . . . . . . . Construction Impeded . | . . . . . . . . . . . Haulers Reinforced . | . . . . . . . . . . . Active Scanning Responses . | . . . . . . . . . . . Cargo Convoy Interrupts . | . . . . . . . . . . . Stealth | -11 -10 -10 -9 -8 -7 -7 -7 -7 -6 -6 --------- Run | Yrd Mat Min Mat Mat Fac Low Low Dat Pro Fac Distress Signals 4 | . . . . 3 1 . . . . . Communications Jammed . | . . . . . . . . . . . Distress Signals . | . . . . . . . . . . . Times Spotted 122 | . 2 5 11 34 8 6 7 4 4 41 Peak Tracking Total 10 | . 2 4 4 7 4 6 8 4 4 10 Tactical Retreats 21 | . . . 2 7 1 2 2 . . 7 Traps | -11 -10 -10 -9 -8 -7 -7 -7 -7 -6 -6 ------- Run | Yrd Mat Min Mat Mat Fac Low Low Dat Pro Fac Traps Triggered 3 | . . . 1 1 1 . . . . . Indirectly . | . . . . . . . . . . . Trap Hack Attempts . | . . . . . . . . . . . Triggered . | . . . . . . . . . . . Disarmed . | . . . . . . . . . . . Reprogrammed . | . . . . . . . . . . . Reused . | . . . . . . . . . . . Traps Extracted . | . . . . . . . . . . . Installed . | . . . . . . . . . . . Triggered . | . . . . . . . . . . . Machines | -11 -10 -10 -9 -8 -7 -7 -7 -7 -6 -6 ---------- Run | Yrd Mat Min Mat Mat Fac Low Low Dat Pro Fac Machines Disabled 2 | . . . 2 . . . . . . . Max in Single Turn 1 | . . . 1 . . . . . . . Garrison Access 1 | . . . . . 1 . . . . . Machines Repaired . | . . . . . . . . . . . Machines Dismantled . | . . . . . . . . . . . Machines Sabotaged . | . . . . . . . . . . . Overloaded Fab Kills . | . . . . . . . . . . . Hacking | -11 -10 -10 -9 -8 -7 -7 -7 -7 -6 -6 --------- Run | Yrd Mat Min Mat Mat Fac Low Low Dat Pro Fac Machines Accessed 17 | . 1 . 2 2 4 . . 4 . 4 Terminals 7 | . 1 . 2 1 1 . . . . 2 Fabricators 3 | . . . . . 1 . . . . 2 Repair Stations . | . . . . . . . . . . . Recycling Units 1 | . . . . 1 . . . . . . Scanalyzers 1 | . . . . . 1 . . . . . Garrison Access 1 | . . . . . 1 . . . . . Total Hacks 64 | . 3 . 6 3 9 . . 30 . 13 Successful 49 | . 1 . 2 3 6 . . 30 . 7 Failed 15 | . 2 . 4 . 3 . . . . 6 Catastrophic 4 | . . . 1 . 2 . . . . 1 Database Lockouts . | . . . . . . . . . . . Manual 9 | . . . 4 1 . . . . . 4 Terminals 18 | . 3 . 6 1 3 . . . . 5 Fabricators 11 | . . . . . 3 . . . . 8 Repair Stations . | . . . . . . . . . . . Recycling Units 2 | . . . . 2 . . . . . . Scanalyzers 1 | . . . . . 1 . . . . . Garrison Access 2 | . . . . . 2 . . . . . Terminal Hacks 37 | . 1 . 2 . 2 . . 30 . 2 Record 12 | . . . . . . . . 11 . 1 Part Schematic 11 | . . . . . . . . 11 . . Robot Schematic 5 | . . . . . . . . 5 . . Prototype ID Bank 5 | . 1 . 1 . . . . 3 . . Branch Access Points 2 | . . . . . 1 . . . . 1 Alert Level 1 | . . . 1 . . . . . . . Unreport Threat 1 | . . . . . 1 . . . . . Fabricator Hacks 6 | . . . . . 2 . . . . 4 Network Status 1 | . . . . . 1 . . . . . Load Schematic 2 | . . . . . . . . . . 2 Build 3 | . . . . . 1 . . . . 2 Repair Station Hacks . | . . . . . . . . . . . Recycling Unit Hacks 2 | . . . . 2 . . . . . . Report Inventory 1 | . . . . 1 . . . . . . Retrieve Components 1 | . . . . 1 . . . . . . Scanalyzer 1 | . . . . . 1 . . . . . Insert Component 1 | . . . . . 1 . . . . . Garrison Access Hacks 1 | . . . . . 1 . . . . . Seal Access 1 | . . . . . 1 . . . . . Unauthorized Hacks 2 | . . . . 1 . . . . . 1 Terminals 2 | . . . . 1 . . . . . 1 Assimilate 1 | . . . . . . . . . . 1 Botnet 1 | . . . . 1 . . . . . . Fabricators . | . . . . . . . . . . . Repair Stations . | . . . . . . . . . . . Recycling Units . | . . . . . . . . . . . Scanalyzers . | . . . . . . . . . . . Garrison Access . | . . . . . . . . . . . Data Cores Recovered 1 | . . . . . . . . . . 1 Used . | . . . . . . . . . . . Hacking Detections 8 | . 1 . 2 1 1 . . . . 3 Full Trace Events 3 | . . . 1 . . . . . . 2 Feedback Events . | . . . . . . . . . . . Feedback Blocked . | . . . . . . . . . . . Robot Schematics Acquired 5 | . . . . . . . . 5 . . Robots Built 1 | . . . . . 1 . . . . . Authchips . | . . . . . . . . . . . Time 134 | . . . . . 134 . . . . . Total Robot Build Rating 4 | . . . . . 4 . . . . . Part Schematics Acquired 11 | . . . . . . . . 11 . . Parts Built 3 | . . . . . . . . . . 3 Authchips . | . . . . . . . . . . . Time 269 | . . . . . . . . . . 269 Total Part Build Rating 19 | . . . . . . . . . . 19 Parts Repaired . | . . . . . . . . . . . Time . | . . . . . . . . . . . Parts Recycled . | . . . . . . . . . . . Recycled Matter . | . . . . . . . . . . . Retrieved Matter . | . . . . . . . . . . . Retrieved Components 9 | . . . . 9 . . . . . . Parts Scanalyzed . | . . . . . . . . . . . Part Schematics Acquired . | . . . . . . . . . . . Parts Damaged . | . . . . . . . . . . . Bothacking | -11 -10 -10 -9 -8 -7 -7 -7 -7 -6 -6 ------------ Run | Yrd Mat Min Mat Mat Fac Low Low Dat Pro Fac Used RIF Installer . | . . . . . . . . . . . Robots Hacked . | . . . . . . . . . . . Non-combat . | . . . . . . . . . . . Combat . | . . . . . . . . . . . Robot Hacks Applied . | . . . . . . . . . . . Relay Couplers Released . | . . . . . . . . . . . Fabnet Peak Effective % . | . . . . . . . . . . . Robots Rewired . | . . . . . . . . . . . Allies Hacked . | . . . . . . . . . . . Hacks Repelled . | . . . . . . . . . . . Allies | -11 -10 -10 -9 -8 -7 -7 -7 -7 -6 -6 -------- Run | Yrd Mat Min Mat Mat Fac Low Low Dat Pro Fac Total Allies 2 | . . . . . 1 . . . . 1 Largest Group 1 | . . . . . 1 . . . . 1 Highest-Rated Group 40 | . . . . . 40 . . . . 26 Highest-Rated Ally 40 | . . . . . 40 . . . . 26 Total Orders . | . . . . . . . . . . . Ally Attacks . | . . . . . . . . . . . Total Damage . | . . . . . . . . . . . Kills . | . . . . . . . . . . . Allies Corrupted . | . . . . . . . . . . . Allies Melted . | . . . . . . . . . . . Intel | -11 -10 -10 -9 -8 -7 -7 -7 -7 -6 -6 ------- Run | Yrd Mat Min Mat Mat Fac Low Low Dat Pro Fac Robot Analysis Total 134 | . . . . . . . . 134 . . Derelict Logs Recovered 5 | . . 2 . . . 2 . . 1 . Drone Launches . | . . . . . . . . . . . Drone Recoveries . | . . . . . . . . . . . Exploration | -11 -10 -10 -9 -8 -7 -7 -7 -7 -6 -6 ------------- Run | Yrd Mat Min Mat Mat Fac Low Low Dat Pro Fac Turns Passed 3554 | . 175 585 401 860 617 139 75 28 70 604 Spaces Moved 3864 | 1 119 290 176 423 926 486 272 98 260 813 Core 14 | . . . . 5 . . . . . 9 Treads . | . . . . . . . . . . . Legs 829 | 1 119 290 176 233 10 . . . . . Wheels . | . . . . . . . . . . . Hover 665 | . . . . 185 . . . . . 480 Flight 2356 | . . . . . 916 486 272 98 260 324 Fastest Speed 17 | 120 120 190 190 46 26 27 27 17 27 27 Average Speed 65 | 120 128 190 190 122 35 27 27 24 27 42 Slowest Speed 400 | 120 190 190 190 400 190 27 27 27 27 300 Overloaded Moves 24 | . . . . . . . . 24 . . Propulsion Burnouts . | . . . . . . . . . . . Robots Hopped 4 | . . . . . . . . 4 . . Cave-ins Triggered . | . . . . . . . . . . . Exploration Rate (%) 41 | 2 30 67 25 43 20 70 47 77 51 29 Regions Visited 10 Branch Regions 5 Pre-discovered Areas 29 | . . . . . . . . 29 . . Known Exits Taken 5 | . . 1 1 1 1 1 . . . . Unknown Exits Taken 5 | 1 1 . . . . . 1 1 1 . Scrap Searched 13 | . . 2 . . . 7 3 . 1 . Spaces Dug 7 | . . . . 2 1 2 . . . 2 Terrain Destroyed 21 | . . . 14 2 1 2 . . . 2 Melee 7 | . . . . 2 1 2 . . . 2 Projectile . | . . . . . . . . . . . AOE 14 | . . . 14 . . . . . . . Terrain Rammed . | . . . . . . . . . . . Walls Destroyed . | . . . . . . . . . . . Machines Disabled . | . . . . . . . . . . . Actions | -11 -10 -10 -9 -8 -7 -7 -7 -7 -6 -6 --------- Run | Yrd Mat Min Mat Mat Fac Low Low Dat Pro Fac Total 4620 | . 140 310 208 628 1182 490 273 95 259 1035 Wait 435 | . . 6 2 52 209 1 . . . 165 Move 3848 | . 118 289 175 422 925 485 271 91 259 813 Hop 2 | . . . . . . . . 2 . . Pick Up 36 | . 7 3 4 12 5 1 . . . 4 Fast Attach 41 | . 3 1 3 14 10 . . . . 10 Attach 9 | . . . 1 3 . . . . . 5 Detach 12 | . 1 1 2 2 2 . . . . 4 Swap 22 | . 1 1 1 12 4 . 1 1 . 1 Drop 60 | . 8 1 2 30 10 1 1 . . 7 Fire 62 | . 2 7 17 36 . . . . . . Melee 89 | . . . . 45 17 2 . 1 . 24 Ram 2 | . . . . . . . . . . 2 Kick 2 | . . 1 1 . . . . . . . Crush . | . . . . . . . . . . . Escape Stasis . | . . . . . . . . . . . Rewire . | . . . . . . . . . . . Trap . | . . . . . . . . . . . Miscellaneous . | . . . . . . . . . . . Route ------- -11/Scrapyard -10/Materials (discovered 2 exits: *Mat / [*Min]) -10/Mines (discovered 2 exits: *Mat x2) -9/Materials -8/Materials -7/Factory (discovered 2 exits: *Low x2) -7/Lower Caves -7/Lower Caves -7/Data Miner -6/Proximity Caves -6/Factory (discovered 2 exits: Low x2) History --------- Turn | Location | Event 1 | -11/Scrapyard | Discovered new exit (range 0) 1 | -11/Scrapyard | Entered Materials 65 | -10/Materials | Discovered new exit (range 15) 131 | -10/Materials | Discovered new exit (range 16) 176 | -10/Materials | Entered Mines 188 | -10/Mines | Met a Derelict bent on vengeance 233 | -10/Mines | Learned Materials terminal intel 239 | -10/Mines | Received a Rocket Launcher from a helpful Derelict 303 | -10/Mines | Build established: Mutant 307 | -10/Mines | Found a damaged Exp. Sensor Array with a note attached 311 | -10/Mines | Found Prototype Device 547 | -10/Mines | Identified exit to Materials 708 | -10/Mines | Discovered exit to Materials (range 7) 761 | -10/Mines | Entered Materials 761 | -9/Materials | Evolved 2 slots: Utility x2 762 | -9/Materials | Loaded intel: 12 terminal locations 1139 | -9/Materials | Discovered new exit (range 14) 1160 | -9/Materials | Identified exit to Materials 1162 | -9/Materials | Entered another Materials area 1162 | -8/Materials | Evolved 2 slots: Utility x2 1671 | -8/Materials | Build established: Scavenger-Mutant 1906 | -8/Materials | Core integrity fell below 50% 1971 | -8/Materials | Lost 3 parts (2n1w) 1993 | -8/Materials | Discovered new exit (range 13) 2021 | -8/Materials | Identified exit to Factory 2022 | -8/Materials | Entered Factory 2022 | -7/Factory | Evolved 2 slots: Propulsion x2 2274 | -7/Factory | Identified Exp. Sensor Array 2390 | -7/Factory | Fabricated I-36 Angel (x1) 2571 | -7/Factory | Identified exit to Lower Caves 2639 | -7/Factory | Entered Lower Caves 2642 | -7/Lower Caves | Learned Factory emergency access door positions 2648 | -7/Lower Caves | Identified exit to Lower Caves 2700 | -7/Lower Caves | Attacked by a faux Warlord 2723 | -7/Lower Caves | Encountered a Warlord checkpoint 2778 | -7/Lower Caves | Entered another Lower Caves area 2793 | -7/Lower Caves | Attracted the attention of an 0b10 outpost 2821 | -7/Lower Caves | Encountered a Warlord checkpoint 2839 | -7/Lower Caves | Build established: Sprinter 2847 | -7/Lower Caves | Discovered new exit (range 11) 2853 | -7/Lower Caves | Entered Data Miner 2853 | -7/Data Miner | Discovered new exit (range 6) 2859 | -7/Data Miner | Met Data Miner 2865 | -7/Data Miner | Learned location of Section 7 (-2) 2865 | -7/Data Miner | Acquired the access code to Warlord's prototype stash 2869 | -7/Data Miner | Received God Mode back door access code from Data Miner 2876 | -7/Data Miner | Interfaced with the Data Conduit 2881 | -7/Data Miner | Entered Proximity Caves 2913 | -6/Proximity Caves | Learned 4 Factory zone layouts 2949 | -6/Proximity Caves | Discovered new exit (range 9) 2951 | -6/Proximity Caves | Entered Factory 2951 | -6/Factory | Evolved 2 slots: Utility x2 2954 | -6/Factory | Loaded intel: 274 machine locations 3144 | -6/Factory | Fabricated Imp. Linear Gravjet (x2) 3181 | -6/Factory | Lost 3 parts (1p1n1u) 3280 | -6/Factory | Identified exit to Lower Caves 3404 | -6/Factory | Lost 5 parts (1p3n1u) 3448 | -6/Factory | Build established: Hacker-Mutant 3457 | -6/Factory | Fabricated Cld. Aerolev Unit (x1) 3523 | -6/Factory | Spotted B-75 Beast 3542 | -6/Factory | Core integrity fell below 50% 3551 | -6/Factory | Core integrity fell below 20% 3555 | -6/Factory | Destroyed by S-27 Virus with Autogun Last Messages --------------- S-27 Virus destroyed. Lgt. Nuclear Core destroyed. System Shield destroyed. Knocked back. K-01 Serf collects debris. Katana destroyed. U-05 Engineer builds a Wall. Slammed into S-27 Virus. Destabilizing: Core damaged (-8). K-01 Serf collects debris. Slammed into S-27 Virus. Imp. Gravmag System destroyed. Knocked back. S-27 Virus destroyed. Cld. Aerolev Unit destroyed. Acquired 7 matter. U-05 Engineer builds a Wall. Core Analyzer destroyed. U-05 Engineer destroyed. K-01 Serf collects debris. Map ----- +----------------------------------------------------+ | ??????????????????????????????"""""""""?????????"" | | ??????????????????+??????????????????????????????? | | ??????????????????????????????"""""""""??????????? | | ???????????"""?"""???????????????????????????????? | | ???????????"""?"""???????????????????????????????? | | ???????????"""?"""???????????????????????????????? | | ?????????????????????????????????????????????????? | | ???????????"""?"""???????????????????????????????? | | ???????????"""?"""???????????????????????????????? | | ???????????"""?"""???????????????????????????????? | | ??????????????????????? ^ R?????????????????????? | | ?????????"""Y"""????? R#????????????????????? | | ?????????"""""""????# k #????????????????????? | | ????????????????????# #????????????????????? | | ????????????????????# #########????????????? | | ????????????????????# s # ????????????? | | ????????????????????# s# ]?????????????? | | ????????????????????# # ?????????????? | | ????????????????????# s# ????????????? | | ????????????????????# # """ """ ????????? | | ???""??""???????????# # """ """ #???????? | | ???""??""???????????# # """ """ #???????? | | ???"""?"""??????????# # #???????? | | ???"""?"""??????????# # * """ """ #???????? | | ???"""?"""??????##### #=%=%""" """ #???????? | | ???????????+ @!s# """ """ #???????? | | ?????????????????#### s%s #???????? | | ????????????????????# A=!#;;;; ;#####??????? | | ????????????????????# s;; #???"""" | | ????????????????????# #k #???"""" | | ???????????????????## ;; #???"""" | | ???????????"""?"""?# #???"""" | | ???????????"""?"""?# H #??????? | | ???????????"""?"""?# R #???"""" | | ????????????""??""?# % #???"""" | | ????????????""??"" + s #???"""" | | ??????????????? # #???"""" | | ???????????"""?"""?# ; = #??????? | | ???????????"""?"""?# ; #??????? | | ???????????"""?"""?# ; [ #??????? | | ????????????""??""?### ;#"""""""#######??????? | | ????????????""??""???# ^^^^# =% #????????? | | ?????????????????????# ^^ # #????????? | | ?????????????????????# # #????????? | | ??????????????????##?" # #????????? | | ??????????????????# " # #????????" | | ??????????T??###### " # #????????" | | ????????????? # #????????" | | ???????????? *# #????????? | | ????????????? "T " [[* #????????? | +----------------------------------------------------+ Best States ------------- Heat Dissipation 45 Coolant Potential 50 Energy Generation 18 Energy Capacity 265 Matter Stores 300 Matter Capacity 300 Sight Range 16 Robot Scan Range 20 Terrain Scan Density 10 Jamming Range 12 Additional Mass Support 9 Evasion (%) 64 Melee Accuracy 12 Core Analysis 6 Offensive Hacking 10 Defensive Hacking 20 Item Schematics ----------------- Combat Drone Bay | -7/Data Miner | Free Lgt. Regenerative Plating | -7/Data Miner | Free Cld. Aerolev Unit | -7/Data Miner | Free Exp. Targeting Computer | -7/Data Miner | Free Com. Ion Cannon | -7/Data Miner | Free Arm. Medium Treads | -7/Data Miner | Free Mni. Drone Bay | -7/Data Miner | Free Tesla Rifle | -7/Data Miner | Free Recoil Nullifier | -7/Data Miner | Free Lgt. Antimatter Reactor | -7/Data Miner | Free Imp. Linear Gravjet | -7/Data Miner | Free Robot Schematics ------------------ R-10 Processor | -7/Data Miner | Free B-48 Gladiator | -7/Data Miner | Free G-50 Soldier | -7/Data Miner | Free W-25 Informer | -7/Data Miner | Free S-27 Virus | -7/Data Miner | Free Fabricated ------------ I-36 Angel | x1 | -7/Factory | Preloaded Imp. Linear Gravjet | x2 | -6/Factory Cld. Aerolev Unit | x1 | -6/Factory Alien Tech Used ----------------- None Achievements -------------- Cya! Unlimited Data Challenges ------------ None Game ------ Seed GravmagParticleSlayer Manual? 0 Play Time 01:01:36 Cumulative 105.4 hours Start 2024.04.30 @ 23:31:17 End 2024.05.01 @ 20:02:01 Sessions 5 Manual Loads 0 Difficulty Rogue Special Mode None Game No. 199 Rogue 197 Adventurer 2 Explorer 0 Win Type - Total 3 Types 2/0/0/1/0/0/0/0/0 Lore% 56 Gallery% 56 Achievement% 44 Wizard Run 0 Options --------- Layout 0 ASCII 0 Keyboard 1 Movement Numpad Keybinds 1 Fullscreen 2 Font 18/SmallcapsGlow Map View 76x50 Zoom Use 0% Tactical HUD 1 Map Filters NONE Filters NONE Steam 1 RUN: 942fe533-5b61-4e77-bea4-47bf06270899